fUSD/lending_fUSD_20240609
["ID","MTS","AMOUNT","RATE_DAILY","PERIOD"]
[328901659,1717969846653,-203.83,0.00024384,2]
[328901660,1717969846665,-177.66609503,0.000245,2]
[328901662,1717969846675,-2664.00198289,0.00024644,2]
[328901664,1717969846685,-695.26,0.00024787,2]
[328901666,1717969846695,-3360.28060058,0.00024798,2]
[328901667,1717969846706,-3360.28060055,0.00024798,2]
[328901668,1717969846717,-3360.28060055,0.00024798,2]
[328901669,1717969846728,-3360.28060055,0.00024798,2]
[328901670,1717969846739,-3360.28060055,0.00024798,2]
[328901671,1717969846749,-3360.28060055,0.00024798,2]
[328901672,1717969846760,-3360.28060055,0.00024798,2]
[328901674,1717969846770,-1082.62068409,0.00024799,2]
[328901676,1717969846779,-1082.62068409,0.00024799,2]
[328901678,1717969846789,-1082.62068409,0.00024799,2]
[328901680,1717969846799,-1082.62068409,0.00024799,2]
[328901682,1717969846810,-1082.62068409,0.00024799,2]
[328901684,1717969846821,-1082.62068409,0.00024799,2]
[328901686,1717969846831,-1082.62068409,0.00024799,2]
[328901688,1717969846842,-5026.0179315,0.000249,2]
[328901689,1717969846854,-365.51881785,0.00024908,2]
[328901690,1717969846865,-152.03,0.0002499,2]
[328901691,1717969846875,-154.61294469,0.00025,2]
[328901692,1717969846885,-159.08875965,0.00025,2]
[328901693,1717969846895,-928.69933237,0.00025,2]
[328901694,1717969846905,-225.09872018,0.00025,2]
[328901695,1717969846915,-325.96818218,0.00025,2]
[328901696,1717969846925,-280480.58428298,0.00025,2]
[328901697,1717969846936,-1250.0,0.00025,2]
[328901698,1717969846946,-325.85502295,0.00025,2]
[328901699,1717969846956,-155.0,0.00025,2]
[328901700,1717969846967,-153.76043897,0.00025,2]
[328901701,1717969846977,-1000.0,0.00025226,2]
[328901702,1717969846987,-305.48555326,0.00025248,2]
[328901703,1717969846998,-322.74942556,0.00025375,2]
[328901704,1717969847010,-1082.62068409,0.00025778,2]
[328901705,1717969847020,-3360.28060055,0.00025778,2]
[328901706,1717969847030,-429.26019216,0.00025832,2]
[328901707,1717969847042,-453.33042599,0.00025845,2]
[328901708,1717969847053,-819.34051136,0.00025857,2]
[328901709,1717969847063,-151.0,0.0002592,5]
[328901710,1717969847074,-155.17212021,0.00026007,2]
[328901711,1717969847084,-160.30199307,0.00026026,2]
[328901712,1717969847094,-150.42489388,0.00026033,2]
[328901713,1717969847103,-160.30199307,0.00026072,2]
[328901714,1717969847113,-160.30199307,0.00026079,2]
[328901715,1717969847123,-365.51881785,0.00026096,2]
[328901716,1717969847133,-177.90257872,0.00026124,2]
[328901717,1717969847144,-150.42489388,0.00026229,2]
[328901718,1717969847154,-160.30199307,0.00026237,2]
[328901719,1717969847165,-155.17212021,0.00026278,2]
[328901720,1717969847175,-155.49979464,0.00026396,2]
[328901721,1717969847185,-155.41443742,0.00026412,2]
[328901722,1717969847196,-169.97347238,0.00026444,2]
[328901723,1717969847206,-153.30125584,0.00026452,2]
[328901724,1717969847216,-156.50530151,0.00026458,2]
[328901725,1717969847226,-153.30125584,0.00026502,2]
[328901726,1717969847236,-177.90257872,0.00026537,2]
[328901727,1717969847247,-2055.69464172,0.000266,2]
[328901728,1717969847256,-153.30125584,0.00026604,2]
[328901729,1717969847266,-150.42489388,0.0002662,2]
[328901730,1717969847276,-153.30125584,0.00026672,2]
[328901731,1717969847286,-177.90257872,0.00026686,2]
[328901732,1717969847298,-152.95933631,0.00026692,2]
[328901733,1717969847308,-177.90257872,0.00026695,2]
[328901734,1717969847319,-177.90257872,0.00026697,2]
[328901735,1717969847330,-177.90257872,0.00026702,2]
[328901736,1717969847343,-164.06121974,0.00026723,2]
[328901737,1717969847354,-177.90257872,0.00026749,2]
[328901738,1717969847365,-153.30125584,0.00026762,2]
[328901739,1717969847375,-2664.00198289,0.00026792,2]
[328901740,1717969847385,-177.90257872,0.00026877,2]
[328901741,1717969847396,-154.98239865,0.00026944,2]
[328901742,1717969847406,-190.63226941,0.00026951,2]
[328901743,1717969847416,-150.42489388,0.00026956,2]
[328901744,1717969847426,-154.54162131,0.00026986,2]
[328901745,1717969847436,-153.30125584,0.00026992,2]
[328901746,1717969847447,-1298.854906,0.00026994,2]
[328901747,1717969847457,-200.032444,0.00026994,2]
[328901748,1717969847467,-178.797385,0.00026994,2]
[328901749,1717969847477,-2085.685997,0.00026994,2]
[328901750,1717969847487,-180.851123,0.00026994,2]
[328901751,1717969847498,-1832.266678,0.00026994,2]
[328901752,1717969847509,-735.804201,0.00026994,2]
[328901753,1717969847520,-1361.01613,0.00026994,2]
[328901754,1717969847532,-183.82429,0.00026994,2]
[328901755,1717969847543,-1300.0,0.00027,2]
[328901756,1717969847553,-150.0,0.00027,2]
[328901757,1717969847564,-153.30125584,0.00027003,2]
[328901758,1717969847574,-152.95933631,0.00027027,2]
[328901759,1717969847587,-177.90257872,0.0002703,2]
[328901760,1717969847599,-150.42489388,0.00027045,2]
[328901761,1717969847609,-151.0,0.00027046,7]
[328901762,1717969847620,-695.26,0.00027051,2]
[328901763,1717969847632,-358.0,0.00027076,2]
[328901764,1717969847642,-1645.616,0.00027076,2]
[328901765,1717969847653,-441.0,0.00027076,2]
[328901766,1717969847663,-446.0,0.00027076,2]
[328901767,1717969847675,-546.0,0.00027076,2]
[328901768,1717969847686,-1660.781,0.00027076,2]
[328901769,1717969847696,-1303.0,0.00027076,2]
[328901770,1717969847707,-5154.0,0.00027076,2]
[328901771,1717969847717,-346.246,0.00027076,2]
[328901772,1717969847728,-38053.0,0.00027076,2]
[328901773,1717969847738,-5783.0,0.00027076,2]
[328901774,1717969847750,-1573.0,0.00027076,2]
[328901775,1717969847761,-1065.0,0.00027076,2]
[328901776,1717969847772,-155.0,0.00027076,2]
[328901777,1717969847783,-156.50530151,0.00027111,2]
[328901778,1717969847793,-177.90257872,0.00027142,2]
[328901779,1717969847804,-177.90257872,0.00027154,2]
[328901780,1717969847814,-153.30125584,0.00027196,2]
[328901781,1717969847825,-2011.37343874,0.000272,2]
[328901782,1717969847836,-200.978798,0.000272,2]
[328901783,1717969847847,-176.80540713,0.00027241,2]
[328901784,1717969847858,-365.51881785,0.00027284,2]
[328901785,1717969847869,-166.49236916,0.00027296,2]
[328901786,1717969847879,-1298.854906,0.00027331,2]
[328901787,1717969847889,-2085.685997,0.00027331,2]
[328901788,1717969847899,-1832.266678,0.00027331,2]
[328901789,1717969847909,-735.804201,0.00027331,2]
[328901790,1717969847919,-1361.01613,0.00027331,2]
[328901791,1717969847930,-166.49236916,0.00027344,2]
[328901792,1717969847940,-160.30199307,0.00027348,2]
[328901793,1717969847950,-152.95933631,0.00027388,2]
[328901794,1717969847960,-807.7080071,0.0002739,2]
[328901795,1717969847972,-500.0,0.00027397,2]
[328901796,1717969847982,-500.0,0.00027397,2]
[328901797,1717969847992,-500.0,0.00027397,2]
[328901798,1717969848002,-500.0,0.00027397,2]
[328901799,1717969848012,-500.0,0.00027397,2]
[328901800,1717969848023,-391.70544257,0.00027397,2]
[328901801,1717969848033,-500.0,0.00027397,2]
[328901802,1717969848044,-500.0,0.00027397,2]
[328901803,1717969848054,-500.0,0.00027397,2]
[328901804,1717969848064,-500.0,0.00027397,2]
[328901805,1717969848074,-500.0,0.00027397,2]
[328901806,1717969848084,-500.0,0.00027397,2]
[328901807,1717969848095,-500.0,0.00027397,2]
[328901808,1717969848105,-500.0,0.00027397,2]
[328901809,1717969848116,-500.0,0.00027397,2]
[328901810,1717969848126,-500.0,0.00027397,2]
[328901811,1717969848136,-272.94102737,0.00027397,2]
[328901812,1717969848146,-500.0,0.00027397,2]
[328901813,1717969848157,-340.81752462,0.00027397,2]
[328901814,1717969848167,-173.95,0.00027397,2]
[328901815,1717969848177,-413.7,0.00027397,2]
[328901816,1717969848188,-152.06,0.00027397,2]
[328901817,1717969848198,-781.5,0.000274,2]
[328901818,1717969848209,-2364.2841155,0.000274,2]
[328901819,1717969848219,-500.0,0.000274,2]
[328901820,1717969848229,-549.94,0.000274,2]
[328901821,1717969848240,-549.94,0.000274,2]
[328901822,1717969848250,-549.94,0.000274,2]
[328901823,1717969848261,-549.94,0.000274,2]
[328901824,1717969848272,-549.94,0.000274,2]
[328901825,1717969848282,-549.94,0.000274,2]
[328901826,1717969848292,-549.94,0.000274,2]
[328901827,1717969848302,-549.94,0.000274,2]
[328901828,1717969848313,-549.94,0.000274,2]
[328901829,1717969848323,-549.94,0.000274,2]
[328901830,1717969848333,-1003.0,0.000274,2]
[328901832,1717969848344,-156.50530151,0.0002741,2]
[328901834,1717969848355,-178.797385,0.00027444,2]
[328901836,1717969848365,-1082.62068409,0.00027489,2]
[328901838,1717969848376,-3360.28060055,0.00027489,2]
[328901840,1717969848386,-155.49979464,0.00027508,2]
[328901841,1717969848396,-177.90257872,0.00027512,2]
[328901842,1717969848406,-153.30125584,0.0002755,2]
[328901843,1717969848417,-177.90257872,0.00027558,2]
[328901844,1717969848427,-150.42489388,0.00027587,2]
[328901845,1717969848438,-160.30199307,0.00027596,2]
[328901846,1717969848448,-152.98677762,0.00027612,2]
[328901847,1717969848459,-177.90257872,0.0002762,2]
[328901848,1717969848469,-152.95933631,0.00027621,2]
[328901849,1717969848479,-153.30125584,0.00027647,2]
[328901850,1717969848489,-1298.854906,0.00027668,2]
[328901851,1717969848499,-180.851123,0.00027668,2]
[328901852,1717969848510,-2085.685997,0.00027668,2]
[328901853,1717969848520,-1832.266678,0.00027668,2]
[328901854,1717969848531,-735.804201,0.00027668,2]
[328901855,1717969848541,-1361.01613,0.00027668,2]
[328901856,1717969848552,-500.0,0.00027671,7]
[328901857,1717969848561,-160.30199307,0.00027698,2]
[328901858,1717969848572,-152.95933631,0.00027707,2]
[328901859,1717969848583,-155.17212021,0.00027724,2]
[328901860,1717969848597,-150.42489388,0.00027725,2]
[328901861,1717969848608,-160.30199307,0.00027759,2]
[328901862,1717969848618,-152.95933631,0.00027769,2]
[328901863,1717969848630,-150.42489388,0.00027793,2]
[328901864,1717969848640,-153.30125584,0.00027797,2]
[328901865,1717969848650,-152.98677762,0.00027817,2]
[328901866,1717969848660,-177.90257872,0.0002786,2]
[328901867,1717969848672,-177.90257872,0.00027864,2]
[328901868,1717969848683,-178.797385,0.00027893,2]
[328901869,1717969848693,-265.97843345,0.000279,2]
[328901870,1717969848704,-177.90257872,0.00027922,2]
[328901871,1717969848714,-154.54162131,0.00027952,2]
[328901872,1717969848725,-166.49236916,0.00027966,2]
[328901873,1717969848735,-153.82629265,0.00027982,2]
[328901874,1717969848746,-152.95933631,0.00027985,2]
[328901875,1717969848758,-173.5540602,0.00028,2]
[328901876,1717969848768,-224.83196172,0.00028,2]
[328901877,1717969848779,-468.72828225,0.00028,2]
[328901878,1717969848789,-1700.0,0.00028,10]
[328901879,1717969848799,-648.91909254,0.00028,2]
[328901880,1717969848810,-648.91909254,0.00028,2]
[328901881,1717969848820,-648.91909254,0.00028,2]
[328901882,1717969848831,-648.91909254,0.00028,2]
[328901883,1717969848841,-648.91909254,0.00028,2]
[328901884,1717969848852,-1298.854906,0.00028006,2]
[328901885,1717969848862,-2085.685997,0.00028006,2]
[328901886,1717969848872,-1832.266678,0.00028006,2]
[328901887,1717969848883,-735.804201,0.00028006,2]
[328901888,1717969848894,-1361.01613,0.00028006,2]
[328901889,1717969848904,-155.41443742,0.00028008,2]
[328901890,1717969848915,-152.95933631,0.00028025,2]
[328901891,1717969848926,-150.42489388,0.00028046,2]
[328901892,1717969848936,-154.98239865,0.00028048,2]
[328901893,1717969848946,-177.90257872,0.00028093,2]
[328901894,1717969848956,-177.90257872,0.00028102,2]
[328901895,1717969848969,-169.97347238,0.00028138,2]
[328901896,1717969848980,-151.0,0.00028173,7]
[328901897,1717969848991,-150.42489388,0.00028211,2]
[328901898,1717969849001,-152.06,0.00028253,2]
[328901899,1717969849012,-153.30125584,0.00028259,2]
[328901900,1717969849023,-177.90257872,0.00028272,2]
[328901901,1717969849034,-177.90257872,0.00028316,2]
[328901902,1717969849044,-152.95933631,0.00028321,2]
[328901903,1717969849054,-178.797385,0.00028343,2]
[328901904,1717969849064,-200.032444,0.00028343,2]
[328901905,1717969849074,-1298.854906,0.00028343,2]
[328901906,1717969849084,-180.851123,0.00028343,2]
[328901907,1717969849095,-2085.685997,0.00028343,2]
[328901908,1717969849105,-1832.266678,0.00028343,2]
[328901909,1717969849116,-1361.01613,0.00028343,2]
[328901910,1717969849126,-735.804201,0.00028343,2]
[328901911,1717969849136,-170.69196785,0.00028361,2]
[328901912,1717969849146,-1670.71,0.0002837,2]
[328901913,1717969849156,-152.95933631,0.00028375,2]
[328901914,1717969849166,-152.98677762,0.00028393,2]
[328901915,1717969849176,-365.51881785,0.00028473,2]
[328901916,1717969849186,-152.95933631,0.00028497,2]
[328901917,1717969849196,-152.98677762,0.00028502,2]
[328901918,1717969849206,-166.66666667,0.00028538,2]
[328901919,1717969849216,-177.90257872,0.00028621,2]
[328901920,1717969849226,-152.95933631,0.00028622,2]
[328901921,1717969849236,-177.90257872,0.00028657,2]
[328901922,1717969849245,-166.4923692,0.00028683,2]
[328901923,1717969849256,-177.90257872,0.00028683,2]
[328901924,1717969849266,-253.35708543,0.00028749,2]
[328901925,1717969849276,-250.17424602,0.0002875,4]
[328901926,1717969849287,-2177.08394,0.0002875,2]
[328901927,1717969849299,-15855.8085595,0.0002876,2]
[328901928,1717969849309,-177.90257872,0.00028762,2]
[328901929,1717969849321,-500.0,0.00028767,2]
[328901930,1717969849332,-500.0,0.00028767,2]
[328901931,1717969849343,-500.0,0.00028767,2]
[328901932,1717969849354,-500.0,0.00028767,2]
[328901933,1717969849365,-500.0,0.00028767,2]
[328901934,1717969849376,-500.0,0.00028767,2]
[328901935,1717969849386,-500.0,0.00028767,2]
[328901936,1717969849397,-526.42721832,0.00028767,2]
[328901937,1717969849407,-500.0,0.00028808,2]
[328901938,1717969849418,-500.0,0.00028809,2]
[328901939,1717969849429,-200.0,0.00028809,2]
[328901940,1717969849439,-177.90257872,0.00028827,2]
[328901941,1717969849449,-778.17029976,0.00028841,7]
[328901942,1717969849459,-150.42489388,0.0002885,2]
[328901943,1717969849469,-177.90257872,0.00028858,2]
[328901944,1717969849479,-152.95933631,0.00028884,2]
[328901945,1717969849489,-253.15766131,0.00028891,2]
[328901946,1717969849499,-152.95933631,0.00028911,2]
[328901947,1717969849510,-150.0,0.00028912,2]
[328901948,1717969849521,-152.03,0.00028931,2]
[328901949,1717969849531,-164.06121974,0.00028932,2]
[328901950,1717969849542,-150.0,0.00028938,2]
[328901951,1717969849552,-2664.00198289,0.00028941,2]
[328901952,1717969849563,-867.6847,0.00028941,2]
[328901953,1717969849573,-687.1821,0.00028941,2]
[328901954,1717969849583,-4686.475,0.00028941,2]
[328901955,1717969849600,-500.0,0.00028941,2]
[328901956,1717969849610,-163.8151,0.00028941,2]
[328901957,1717969849620,-24804.1337,0.00028941,2]
[328901958,1717969849630,-245000.0,0.00028941,2]
[328901959,1717969849643,-43243.3379,0.00028941,2]
[328901960,1717969849654,-1000.0,0.00028941,2]
[328901961,1717969849664,-318.8813,0.00028941,2]
[328901962,1717969849676,-3604.4591,0.00028941,2]
[328901963,1717969849687,-150.0,0.00028946,2]
[328901964,1717969849697,-150.0,0.00028952,2]
[328901965,1717969849707,-150.0,0.00028953,2]
[328901966,1717969849718,-193.83670902,0.00028974,2]
[328901967,1717969849728,-150.0,0.00028981,2]
[328901968,1717969849739,-150.0,0.00028985,2]
[328901969,1717969849749,-152.95933631,0.00028992,2]
[328901970,1717969849934,-345.0,0.00029,2]
[328901971,1717969849947,-1350.0,0.00029,2]
[328901972,1717969849958,-715.44019958,0.00029,2]
[328901973,1717969849968,-899.99999884,0.00029,30]
[328901974,1717969849980,-4170.43277724,0.00029,2]
[328901975,1717969849991,-5000.0,0.00029,7]
[328901976,1717969850003,-488.0,0.00029,13]
[328901977,1717969850014,-764.95819682,0.00029,2]
[328901978,1717969850024,-851.06155242,0.00029,2]
[328901979,1717969850035,-997.68,0.00029,2]
[328901980,1717969850046,-697.86310645,0.00029,5]
[328901981,1717969850057,-1000.0,0.00029,2]
[328901982,1717969850069,-150.0,0.00029,6]
[328901983,1717969850080,-239.45269414,0.00029,2]
[328901984,1717969850091,-239.45269414,0.00029,2]
[328901985,1717969850100,-239.45269414,0.00029,2]
[328901986,1717969850110,-239.45269414,0.00029,2]
[328901987,1717969850120,-239.45269414,0.00029,2]
[328901988,1717969850129,-239.45269414,0.00029,2]
[328901989,1717969850139,-239.45269414,0.00029,2]
[328901990,1717969850149,-239.45269414,0.00029,2]
[328901991,1717969850159,-239.45269414,0.00029,2]
[328901992,1717969850168,-239.45269414,0.00029,2]
[328901993,1717969850178,-239.45269414,0.00029,2]
[328901994,1717969850188,-239.45269414,0.00029,2]
[328901995,1717969850198,-239.45269414,0.00029,2]
[328901996,1717969850208,-239.45269414,0.00029,2]
[328901997,1717969850218,-239.45269414,0.00029,2]
[328901998,1717969850228,-239.45269414,0.00029,2]
[328901999,1717969850237,-239.45269414,0.00029,2]
[328902000,1717969850247,-239.45269414,0.00029,2]
[328902001,1717969850258,-239.45269414,0.00029,2]
[328902002,1717969850268,-239.45269414,0.00029,2]
[328902003,1717969850278,-239.45269414,0.00029,2]
[328902004,1717969850288,-239.45269414,0.00029,2]
[328902005,1717969850298,-239.45269414,0.00029,2]
[328902006,1717969850308,-239.45269414,0.00029,2]
[328902007,1717969850319,-239.45269414,0.00029,2]
[328902008,1717969850331,-239.45269414,0.00029,2]
[328902009,1717969850342,-239.45269414,0.00029,2]
[328902010,1717969850353,-239.45269414,0.00029,2]
[328902011,1717969850364,-239.45269414,0.00029,2]
[328902012,1717969850375,-239.45269414,0.00029,2]
[328902013,1717969850386,-239.45269414,0.00029,2]
[328902014,1717969850396,-239.45269414,0.00029,2]
[328902015,1717969850406,-239.45269414,0.00029,2]
[328902016,1717969850416,-239.45269414,0.00029,2]
[328902017,1717969850426,-239.45269414,0.00029,2]
[328902018,1717969850436,-239.45269414,0.00029,2]
[328902019,1717969850447,-239.45269414,0.00029,2]
[328902020,1717969850457,-239.45269414,0.00029,2]
[328902021,1717969850467,-239.45269414,0.00029,2]
[328902022,1717969850477,-239.45269414,0.00029,2]
[328902023,1717969850487,-150.0,0.00029001,2]
[328902024,1717969850498,-150.0,0.00029001,2]
[328902025,1717969850510,-4614.50555793,0.00029013,2]
[328902026,1717969850520,-684.14,0.00029014,2]
[328902027,1717969850530,-305.48555326,0.0002903,2]
[328902028,1717969850541,-150.0,0.00029038,2]
[328902029,1717969850550,-155.0,0.00029039,2]
[328902030,1717969850561,-1052.85767216,0.00029039,2]
[328902031,1717969850571,-200.41293257,0.00029039,2]
[328902032,1717969850581,-296.512316,0.00029039,2]
[328902033,1717969850594,-1879.76939918,0.00029039,2]
[328902034,1717969850605,-799.42038404,0.00029039,2]
[328902035,1717969850615,-725.66391828,0.00029039,2]
[328902036,1717969850625,-170.63269153,0.0002904,2]
[328902037,1717969850635,-150.0,0.0002904,10]
[328902038,1717969850645,-222.87402492,0.00029041,5]
[328902039,1717969850655,-505.12050344,0.00029041,4]
[328902040,1717969850666,-500.0,0.00029041,4]
[328902041,1717969850676,-500.0,0.00029041,4]
[328902042,1717969850687,-500.0,0.00029041,4]
[328902043,1717969850698,-500.0,0.00029041,4]
[328902044,1717969850708,-505.65727613,0.00029041,4]
[328902045,1717969850717,-502.31855233,0.00029041,4]
[328902046,1717969850728,-502.04379117,0.00029041,4]
[328902047,1717969850738,-502.70006148,0.00029041,4]
[328902048,1717969850748,-500.0,0.00029041,4]
[328902049,1717969850759,-500.0,0.00029041,4]
[328902050,1717969850769,-500.0,0.00029041,4]
[328902051,1717969850779,-500.0,0.00029041,4]
[328902052,1717969850790,-426.13025967,0.00029041,4]
[328902053,1717969850800,-330.8427029,0.00029041,4]
[328902054,1717969850810,-500.0,0.00029041,4]
[328902055,1717969850820,-500.0,0.00029041,4]
[328902056,1717969850830,-500.0,0.00029041,4]
[328902057,1717969850842,-125197.03619662,0.00029041,2]
[328902058,1717969850852,-500.0,0.00029041,4]
[328902059,1717969850862,-498.48115019,0.00029041,4]
[328902060,1717969850872,-571.14532733,0.00029041,4]
[328902061,1717969850882,-608.19801026,0.00029041,4]
[328902062,1717969850892,-500.0,0.00029041,4]
[328902063,1717969850904,-500.0,0.00029041,4]
[328902064,1717969850914,-500.0,0.00029041,4]
[328902065,1717969850925,-500.0,0.00029041,4]
[328902066,1717969850935,-615.44578115,0.00029041,4]
[328902067,1717969850947,-510.58274273,0.00029041,4]
[328902068,1717969850958,-220.48845191,0.00029041,4]
[328902069,1717969850971,-500.0,0.00029041,4]
[328902070,1717969850983,-249.992111,0.00029041,4]
[328902071,1717969850993,-500.0,0.00029041,4]
[328902072,1717969851005,-259.02461999,0.00029041,4]
[328902073,1717969851016,-500.0,0.00029041,4]
[328902074,1717969851026,-501.01112655,0.00029041,4]
[328902075,1717969851036,-555.89790163,0.00029041,4]
[328902076,1717969851047,-501.38749399,0.00029041,4]
[328902077,1717969851057,-500.000001,0.00029041,4]
[328902078,1717969851068,-533.60343424,0.00029041,4]
[328902079,1717969851079,-500.0,0.00029041,4]
[328902080,1717969851089,-500.0,0.00029041,4]
[328902081,1717969851099,-517.10223928,0.00029041,4]
[328902082,1717969851110,-500.0,0.00029041,4]
[328902083,1717969851121,-266.48301652,0.00029041,4]
[328902084,1717969851132,-501.57700641,0.00029041,4]
[328902085,1717969851142,-501.14859297,0.00029041,4]
[328902086,1717969851152,-509.83077592,0.00029041,4]
[328902087,1717969851162,-500.0,0.00029041,4]
[328902088,1717969851172,-500.43061371,0.00029041,4]
[328902089,1717969851182,-526.49622733,0.00029041,4]
[328902090,1717969851192,-500.0,0.00029041,4]
[328902091,1717969851202,-500.0,0.00029041,4]
[328902092,1717969851212,-502.13241128,0.00029041,4]
[328902093,1717969851223,-500.0,0.00029041,4]
[328902094,1717969851233,-501.17231859,0.00029041,4]
[328902095,1717969851243,-500.0,0.00029041,4]
[328902096,1717969851253,-500.0,0.00029041,4]
[328902097,1717969851263,-422.15,0.00029041,4]
[328902098,1717969851273,-500.0,0.00029041,4]
[328902099,1717969851283,-500.0,0.00029041,4]
[328902100,1717969851294,-500.0,0.00029041,4]
[328902101,1717969851306,-504.17001401,0.00029041,4]
[328902102,1717969851317,-500.0,0.00029041,4]
[328902103,1717969851328,-500.0,0.00029041,4]
[328902104,1717969851339,-500.0,0.00029041,4]
[328902105,1717969851349,-500.0,0.00029041,4]
[328902106,1717969851359,-542.91423989,0.00029041,4]
[328902107,1717969851369,-500.0,0.00029041,4]
[328902108,1717969851379,-500.0,0.00029041,4]
[328902109,1717969851389,-500.0,0.00029041,4]
[328902110,1717969851400,-500.0,0.00029041,4]
[328902111,1717969851409,-500.0,0.00029041,4]
[328902112,1717969851419,-500.0,0.00029041,4]
[328902113,1717969851430,-500.0,0.00029041,4]
[328902114,1717969851442,-500.0,0.00029041,4]
[328902115,1717969851453,-500.0,0.00029041,4]
[328902116,1717969851465,-500.0,0.00029041,4]
[328902117,1717969851476,-500.0,0.00029041,4]
[328902118,1717969851487,-500.0,0.00029041,4]
[328902119,1717969851499,-500.0,0.00029041,4]
[328902120,1717969851510,-500.0,0.00029041,4]
[328902121,1717969851521,-184.84,0.00029041,4]
[328902122,1717969851531,-500.0,0.00029041,4]
[328902123,1717969851542,-500.0,0.00029041,4]
[328902124,1717969851554,-500.0,0.00029041,4]
[328902125,1717969851566,-500.0,0.00029041,4]
[328902126,1717969851578,-233.41511647,0.00029041,4]
[328902127,1717969851590,-500.0,0.00029041,4]
[328902128,1717969851602,-500.0,0.00029041,4]
[328902129,1717969851613,-500.0,0.00029041,4]
[328902130,1717969851622,-500.0,0.00029041,4]
[328902131,1717969851634,-525.97376822,0.00029041,4]
[328902132,1717969851644,-375.36,0.00029041,4]
[328902133,1717969851654,-500.0,0.00029041,4]
[328902134,1717969851665,-311.16,0.00029041,4]
[328902135,1717969851675,-500.0,0.00029041,4]
[328902136,1717969851685,-425.62980478,0.00029041,4]
[328902137,1717969851695,-500.0,0.00029041,4]
[328902138,1717969851705,-500.0,0.00029041,4]
[328902139,1717969851715,-500.0,0.00029041,4]
[328902140,1717969851725,-181.82,0.00029041,4]
[328902141,1717969851735,-500.0,0.00029041,4]
[328902142,1717969851746,-500.0,0.00029041,4]
[328902143,1717969851757,-500.0,0.00029041,4]
[328902144,1717969851769,-500.0,0.00029041,4]
[328902145,1717969851779,-500.0,0.00029041,4]
[328902146,1717969851789,-500.0,0.00029041,4]
[328902147,1717969851799,-500.0,0.00029041,4]
[328902148,1717969851811,-500.0,0.00029041,4]
[328902149,1717969851822,-500.0,0.00029041,4]
[328902150,1717969851832,-500.0,0.00029041,4]
[328902151,1717969851842,-532.44910608,0.00029041,4]
[328902152,1717969851852,-500.0,0.00029041,4]
[328902153,1717969851862,-500.0,0.00029041,4]
[328902154,1717969851873,-500.0,0.00029041,4]
[328902155,1717969851884,-402.94,0.00029041,4]
[328902156,1717969851894,-500.0,0.00029041,4]
[328902157,1717969851905,-500.0,0.00029041,4]
[328902158,1717969851915,-178.73,0.00029041,4]
[328902159,1717969851926,-500.0,0.00029041,4]
[328902160,1717969851938,-500.0,0.00029041,4]
[328902161,1717969851948,-500.0,0.00029041,4]
[328902162,1717969851958,-500.0,0.00029041,4]
[328902163,1717969851969,-344.55,0.00029041,4]
[328902164,1717969851979,-500.0,0.00029041,4]
[328902165,1717969851989,-500.0,0.00029041,4]
[328902166,1717969851999,-500.0,0.00029041,4]
[328902167,1717969852010,-500.0,0.00029041,4]
[328902168,1717969852020,-500.0,0.00029041,4]
[328902169,1717969852030,-500.0,0.00029041,4]
[328902170,1717969852041,-500.0,0.00029041,4]
[328902171,1717969852051,-500.0,0.00029041,4]
[328902172,1717969852062,-500.0,0.00029041,4]
[328902173,1717969852075,-500.0,0.00029041,4]
[328902174,1717969852087,-500.0,0.00029041,4]